[Event "*** Titled Tuesday Blitz"]
[Site "Chess.com"]
[Date "2020.11.03"]
[Round "1"]
[White "emiliochess"]
[Black "Caracternin123"]
[Result "0-1"]
[WhiteElo "2281"]
[BlackElo "2596"]
[TimeControl "180+1"]
[EndTime "10:01:21 PST"]
[Termination "Caracternin123 won by resignation"]

1. d4 {[%clk 0:03:00.9]} 1... Nf6 {[%clk 0:02:54.1]} 2. Bf4 {[%clk 0:03:00.9]}
2... d5 {[%clk 0:02:54.1]} 3. e3 {[%clk 0:03:00.7]} 3... e6 {[%clk 0:02:54]} 4.
Bd3 {[%clk 0:03:00.5]} 4... Bd6 {[%clk 0:02:54.5]} 5. Bg3 {[%clk 0:03:00.5]}
5... O-O {[%clk 0:02:54.8]} 6. Nd2 {[%clk 0:03:00.5]} 6... c5 {[%clk 0:02:54.8]}
7. c3 {[%clk 0:03:00.5]} 7... b6 {[%clk 0:02:54.5]} 8. Ngf3 {[%clk 0:03:00.4]}
8... Ba6 {[%clk 0:02:54.7]} 9. Bc2 {[%clk 0:02:59.9]} 9... Nc6 {[%clk
0:02:53.5]} 10. Ne5 {[%clk 0:02:55.8]} 10... Qc7 {[%clk 0:02:53.5]} 11. f4
{[%clk 0:02:55.4]} 11... Rac8 {[%clk 0:02:49.5]} 12. Qf3 {[%clk 0:02:54.5]}
12... cxd4 {[%clk 0:02:49]} 13. Nxc6 {[%clk 0:02:52.3]} 13... dxc3 {[%clk
0:02:45.3]} 14. bxc3 {[%clk 0:02:47.1]} 14... Qxc6 {[%clk 0:02:44.6]} 15. Rc1
{[%clk 0:02:47.4]} 15... Ba3 {[%clk 0:02:37.3]} 0-1

[Event "*** Titled Tuesday Blitz"]
[Site "Chess.com"]
[Date "2020.11.03"]
[Round "1"]
[White "Savva09022009"]
[Black "Promacherr"]
[Result "0-1"]
[WhiteElo "2340"]
[BlackElo "2669"]
[TimeControl "180+1"]
[EndTime "10:02:28 PST"]
[Termination "Promacherr won by checkmate"]

1. e4 {[%clk 0:03:00.9]} 1... e6 {[%clk 0:02:59.6]} 2. d4 {[%clk 0:03:00.5]}
2... d5 {[%clk 0:03:00.2]} 3. Nc3 {[%clk 0:03:00]} 3... Nf6 {[%clk 0:03:00.1]}
4. e5 {[%clk 0:02:59.3]} 4... Nfd7 {[%clk 0:03:00.1]} 5. f4 {[%clk 0:02:54.7]}
5... c5 {[%clk 0:03:00.3]} 6. Nf3 {[%clk 0:02:54.9]} 6... Nc6 {[%clk 0:03:00.8]}
7. Be3 {[%clk 0:02:54.2]} 7... Be7 {[%clk 0:03:01.3]} 8. Qd2 {[%clk 0:02:53]}
8... O-O {[%clk 0:03:01.4]} 9. O-O-O {[%clk 0:02:51.6]} 9... c4 {[%clk
0:03:01.3]} 10. g4 {[%clk 0:02:46.4]} 10... b5 {[%clk 0:03:01.3]} 11. Ne2 {[%clk
0:02:39.7]} 11... b4 {[%clk 0:03:00.4]} 12. f5 {[%clk 0:02:40.2]} 12... Qa5
{[%clk 0:02:59.6]} 13. Kb1 {[%clk 0:02:39.2]} 13... c3 {[%clk 0:02:59.6]} 14.
Qe1 {[%clk 0:02:36.9]} 14... cxb2 {[%clk 0:02:53.7]} 15. Nf4 {[%clk 0:02:33.8]}
15... Nb6 {[%clk 0:02:32.4]} 16. Bd3 {[%clk 0:02:20.8]} 16... Na4 {[%clk
0:02:26.5]} 17. fxe6 {[%clk 0:02:04.2]} 17... Nc3+ {[%clk 0:02:24.1]} 18. Kxb2
{[%clk 0:02:03.6]} 18... Qa3+ {[%clk 0:02:22.3]} 19. Ka1 {[%clk 0:02:00.1]}
19... Qxa2# {[%clk 0:02:23.2]} 0-1

[Event "*** Titled Tuesday Blitz"]
[Site "Chess.com"]
[Date "2020.11.03"]
[Round "1"]
[White "Dr-Bassem"]
[Black "Atousa1"]
[Result "1-0"]
[WhiteElo "2794"]
[BlackElo "2397"]
[TimeControl "180+1"]
[EndTime "10:02:38 PST"]
[Termination "Dr-Bassem won by resignation"]

1. e4 {[%clk 0:02:58.2]} 1... e5 {[%clk 0:02:57.7]} 2. Nf3 {[%clk 0:02:55.8]}
2... Nf6 {[%clk 0:02:56.1]} 3. Nxe5 {[%clk 0:02:45.5]} 3... d6 {[%clk
0:02:55.9]} 4. Nf3 {[%clk 0:02:45.9]} 4... Nxe4 {[%clk 0:02:56.1]} 5. Nc3 {[%clk
0:02:46.3]} 5... Nxc3 {[%clk 0:02:55.6]} 6. dxc3 {[%clk 0:02:47.2]} 6... Be7
{[%clk 0:02:56.2]} 7. Bd3 {[%clk 0:02:44.8]} 7... Nc6 {[%clk 0:02:51.8]} 8. Be3
{[%clk 0:02:44.5]} 8... Be6 {[%clk 0:02:52]} 9. Qe2 {[%clk 0:02:44.1]} 9... Qd7
{[%clk 0:02:52.2]} 10. O-O-O {[%clk 0:02:44.7]} 10... O-O-O {[%clk 0:02:50.5]}
11. Bb5 {[%clk 0:02:45]} 11... a6 {[%clk 0:02:39.9]} 12. Bxa6 {[%clk 0:02:44.2]}
12... bxa6 {[%clk 0:02:26.4]} 13. Qxa6+ {[%clk 0:02:45.1]} 13... Kb8 {[%clk
0:02:26.4]} 14. Ne5 {[%clk 0:02:40]} 14... dxe5 {[%clk 0:01:55.2]} 15. Rxd7
{[%clk 0:02:40.9]} 15... Bxd7 {[%clk 0:01:55.9]} 16. Rd1 {[%clk 0:02:39.8]}
16... Bd6 {[%clk 0:01:53.9]} 17. Rd5 {[%clk 0:02:37.3]} 17... Nd4 {[%clk
0:01:36.7]} 18. cxd4 {[%clk 0:02:34.5]} 18... Bc8 {[%clk 0:01:37.1]} 1-0

[Event "*** Titled Tuesday Blitz"]
[Site "Chess.com"]
[Date "2020.11.03"]
[Round "1"]
[White "AliKa2810"]
[Black "Shivagami"]
[Result "1-0"]
[WhiteElo "2575"]
[BlackElo "2253"]
[TimeControl "180+1"]
[EndTime "10:03:03 PST"]
[Termination "AliKa2810 won by resignation"]

1. d4 {[%clk 0:02:57.2]} 1... Nf6 {[%clk 0:02:57.8]} 2. c4 {[%clk 0:02:56.2]}
2... c5 {[%clk 0:02:58]} 3. d5 {[%clk 0:02:55.3]} 3... e6 {[%clk 0:02:57.7]} 4.
Nc3 {[%clk 0:02:54.4]} 4... exd5 {[%clk 0:02:57.9]} 5. cxd5 {[%clk 0:02:55.1]}
5... d6 {[%clk 0:02:58.4]} 6. Nf3 {[%clk 0:02:54]} 6... a6 {[%clk 0:02:58.7]} 7.
a4 {[%clk 0:02:52.9]} 7... g6 {[%clk 0:02:59.2]} 8. h3 {[%clk 0:02:53]} 8... Bg7
{[%clk 0:02:58.1]} 9. e4 {[%clk 0:02:53.4]} 9... O-O {[%clk 0:02:58]} 10. Bd3
{[%clk 0:02:52.7]} 10... Nbd7 {[%clk 0:02:56.9]} 11. O-O {[%clk 0:02:52.1]}
11... Qc7 {[%clk 0:02:54.7]} 12. Bf4 {[%clk 0:02:49.2]} 12... Rb8 {[%clk
0:02:49.8]} 13. Re1 {[%clk 0:02:49]} 13... c4 {[%clk 0:02:47.5]} 14. Bc2 {[%clk
0:02:45.1]} 14... b5 {[%clk 0:02:47]} 15. axb5 {[%clk 0:02:44.9]} 15... axb5
{[%clk 0:02:47.1]} 16. Nd4 {[%clk 0:02:45.5]} 16... Qc5 {[%clk 0:02:25.2]} 17.
Nc6 {[%clk 0:02:44.8]} 17... Qb6 {[%clk 0:01:34.8]} 18. Bxd6 {[%clk 0:02:38.2]}
18... Rb7 {[%clk 0:01:34.4]} 19. e5 {[%clk 0:02:31.9]} 19... Ne8 {[%clk
0:01:26]} 20. Ne7+ {[%clk 0:02:30.1]} 1-0

[Event "*** Titled Tuesday Blitz"]
[Site "Chess.com"]
[Date "2020.11.03"]
[Round "1"]
[White "Skatchkov_V"]
[Black "Quiet_Desperation"]
[Result "1-0"]
[WhiteElo "2474"]
[BlackElo "1800"]
[TimeControl "180+1"]
[EndTime "10:03:42 PST"]
[Termination "Skatchkov_V won by resignation"]

1. d4 {[%clk 0:03:00.5]} 1... Nf6 {[%clk 0:02:57.9]} 2. c4 {[%clk 0:03:00.8]}
2... e6 {[%clk 0:02:58.4]} 3. Nf3 {[%clk 0:03:00.7]} 3... Bb4+ {[%clk 0:02:59]}
4. Nbd2 {[%clk 0:03:00.8]} 4... b6 {[%clk 0:02:58.9]} 5. a3 {[%clk 0:03:00.8]}
5... Bxd2+ {[%clk 0:02:59.1]} 6. Qxd2 {[%clk 0:03:01.7]} 6... Bb7 {[%clk
0:02:58.6]} 7. g3 {[%clk 0:03:02.3]} 7... O-O {[%clk 0:02:58.8]} 8. Bg2 {[%clk
0:03:02.7]} 8... d6 {[%clk 0:02:58.7]} 9. O-O {[%clk 0:03:03]} 9... Nbd7 {[%clk
0:02:57.3]} 10. b4 {[%clk 0:03:01.1]} 10... Ne4 {[%clk 0:02:56.6]} 11. Qc2
{[%clk 0:03:01.1]} 11... Qe7 {[%clk 0:02:49.2]} 12. Bb2 {[%clk 0:03:01.2]} 12...
f5 {[%clk 0:02:39.7]} 13. d5 {[%clk 0:02:58.1]} 13... e5 {[%clk 0:02:35]} 14.
Nh4 {[%clk 0:02:56.5]} 14... Ng5 {[%clk 0:02:29.5]} 15. Nxf5 {[%clk 0:02:54.2]}
15... Rxf5 {[%clk 0:02:28.8]} 16. Qxf5 {[%clk 0:02:55.1]} 16... Rf8 {[%clk
0:02:28.2]} 17. Qc2 {[%clk 0:02:49.1]} 17... Bc8 {[%clk 0:02:21.3]} 18. e4
{[%clk 0:02:34.2]} 18... Nf6 {[%clk 0:02:05.6]} 19. f4 {[%clk 0:02:27.4]} 19...
exf4 {[%clk 0:02:04.4]} 20. gxf4 {[%clk 0:02:28.2]} 20... Nh3+ {[%clk
0:02:03.7]} 21. Kh1 {[%clk 0:02:26.5]} 21... Nh5 {[%clk 0:01:49.7]} 22. f5
{[%clk 0:02:26.8]} 22... Qh4 {[%clk 0:01:49]} 23. Bxh3 {[%clk 0:02:19.8]} 23...
Qxh3 {[%clk 0:01:47.5]} 24. Qg2 {[%clk 0:02:19.6]} 24... Qb3 {[%clk 0:01:43.3]}
25. Rac1 {[%clk 0:02:06.9]} 25... g6 {[%clk 0:01:37.8]} 26. fxg6 {[%clk
0:01:57.2]} 26... Rxf1+ {[%clk 0:01:35.9]} 27. Rxf1 {[%clk 0:01:58.1]} 1-0

[Event "*** Titled Tuesday Blitz"]
[Site "Chess.com"]
[Date "2020.11.03"]
[Round "1"]
[White "Gloomy_Wanderer"]
[Black "orestn"]
[Result "1-0"]
[WhiteElo "2697"]
[BlackElo "2357"]
[TimeControl "180+1"]
[EndTime "10:03:45 PST"]
[Termination "Gloomy_Wanderer won by resignation"]

1. d4 {[%clk 0:03:00]} 1... d5 {[%clk 0:02:46.6]} 2. c4 {[%clk 0:02:57.5]} 2...
e6 {[%clk 0:02:46.6]} 3. Nf3 {[%clk 0:02:57.2]} 3... Nf6 {[%clk 0:02:47.1]} 4.
g3 {[%clk 0:02:57.1]} 4... Be7 {[%clk 0:02:46.6]} 5. Bg2 {[%clk 0:02:57.3]} 5...
O-O {[%clk 0:02:47.5]} 6. O-O {[%clk 0:02:57]} 6... c6 {[%clk 0:02:47.3]} 7. Qc2
{[%clk 0:02:56.7]} 7... Nbd7 {[%clk 0:02:47.9]} 8. Nbd2 {[%clk 0:02:56.8]} 8...
b6 {[%clk 0:02:47.1]} 9. e4 {[%clk 0:02:56.9]} 9... Bb7 {[%clk 0:02:46.1]} 10.
e5 {[%clk 0:02:56.8]} 10... Ne8 {[%clk 0:02:46.1]} 11. cxd5 {[%clk 0:02:57]}
11... cxd5 {[%clk 0:02:45.6]} 12. Re1 {[%clk 0:02:57.1]} 12... Rc8 {[%clk
0:02:45]} 13. Qa4 {[%clk 0:02:57.1]} 13... Bc6 {[%clk 0:02:39.8]} 14. Qb3 {[%clk
0:02:56.1]} 14... Nb8 {[%clk 0:02:37.6]} 15. Nf1 {[%clk 0:02:54.5]} 15... Qd7
{[%clk 0:02:37.9]} 16. Ne3 {[%clk 0:02:42.5]} 16... Ba4 {[%clk 0:02:36.3]} 17.
Qd3 {[%clk 0:02:42.3]} 17... Bb5 {[%clk 0:02:36]} 18. Qd1 {[%clk 0:02:42.2]}
18... Ba4 {[%clk 0:02:33.7]} 19. b3 {[%clk 0:02:41.1]} 19... Bc6 {[%clk
0:02:32.8]} 20. Bf1 {[%clk 0:02:40.1]} 20... Bb5 {[%clk 0:02:32.2]} 21. h4
{[%clk 0:02:40]} 21... Bxf1 {[%clk 0:02:31.3]} 22. Kxf1 {[%clk 0:02:40.3]} 22...
Nc6 {[%clk 0:02:30]} 23. Bd2 {[%clk 0:02:39.8]} 23... Ba3 {[%clk 0:02:26.8]} 24.
Rb1 {[%clk 0:02:24.2]} 24... Nc7 {[%clk 0:02:22.8]} 25. Qe2 {[%clk 0:02:19.8]}
25... Bb4 {[%clk 0:02:17.5]} 26. Rbc1 {[%clk 0:02:15]} 26... Bxd2 {[%clk
0:02:08.3]} 27. Qxd2 {[%clk 0:02:15.9]} 27... Na5 {[%clk 0:02:00.5]} 28. Ng4
{[%clk 0:02:13.4]} 28... Nb5 {[%clk 0:01:47.5]} 29. h5 {[%clk 0:02:12.9]} 29...
Rxc1 {[%clk 0:01:41]} 30. Rxc1 {[%clk 0:02:13.8]} 30... Rc8 {[%clk 0:01:40.7]}
31. h6 {[%clk 0:02:13.6]} 31... Rxc1+ {[%clk 0:01:39.1]} 32. Qxc1 {[%clk
0:02:14.5]} 32... Qc6 {[%clk 0:01:37.7]} 33. Qg5 {[%clk 0:02:10]} 1-0

[Event "*** Titled Tuesday Blitz"]
[Site "Chess.com"]
[Date "2020.11.03"]
[Round "1"]
[White "lefonghua"]
[Black "monalize"]
[Result "1-0"]
[WhiteElo "2626"]
[BlackElo "2271"]
[TimeControl "180+1"]
[EndTime "10:04:00 PST"]
[Termination "lefonghua won by resignation"]

1. d4 {[%clk 0:03:00.9]} 1... Nf6 {[%clk 0:02:52.9]} 2. c4 {[%clk 0:03:01.1]}
2... d6 {[%clk 0:02:52.8]} 3. Nc3 {[%clk 0:02:58.4]} 3... e5 {[%clk 0:02:52.4]}
4. e3 {[%clk 0:02:49.2]} 4... Nbd7 {[%clk 0:02:50.2]} 5. g3 {[%clk 0:02:48.9]}
5... g6 {[%clk 0:02:49.8]} 6. Bg2 {[%clk 0:02:49.4]} 6... Bg7 {[%clk 0:02:49.4]}
7. Nge2 {[%clk 0:02:50]} 7... c6 {[%clk 0:02:49]} 8. O-O {[%clk 0:02:50.3]} 8...
O-O {[%clk 0:02:48.8]} 9. b4 {[%clk 0:02:47.9]} 9... exd4 {[%clk 0:02:44.3]} 10.
Nxd4 {[%clk 0:02:44.2]} 10... Nb6 {[%clk 0:02:43]} 11. Qb3 {[%clk 0:02:41.6]}
11... d5 {[%clk 0:02:38]} 12. cxd5 {[%clk 0:02:39.8]} 12... Nbxd5 {[%clk
0:02:37.3]} 13. Nxd5 {[%clk 0:02:39.9]} 13... Nxd5 {[%clk 0:02:37.2]} 14. Bb2
{[%clk 0:02:36.1]} 14... a5 {[%clk 0:02:31.2]} 15. b5 {[%clk 0:02:28.3]} 15...
a4 {[%clk 0:02:31.2]} 16. Qc4 {[%clk 0:02:24.9]} 16... a3 {[%clk 0:02:28.4]} 17.
Bc1 {[%clk 0:02:14.4]} 17... Nb6 {[%clk 0:02:27]} 18. Qc5 {[%clk 0:02:13.8]}
18... Nd7 {[%clk 0:02:23.5]} 19. Qd6 {[%clk 0:01:51]} 19... c5 {[%clk
0:02:22.3]} 20. Nc6 {[%clk 0:01:45.3]} 20... bxc6 {[%clk 0:02:18.8]} 21. bxc6
{[%clk 0:01:45.4]} 21... Nb6 {[%clk 0:02:01.7]} 22. Qxd8 {[%clk 0:01:41.3]}
22... Rxd8 {[%clk 0:01:54.4]} 23. Rb1 {[%clk 0:01:31.5]} 23... Nc4 {[%clk
0:01:44.8]} 24. c7 {[%clk 0:01:29.9]} 24... Bf5 {[%clk 0:01:39.8]} 25. Bxa8
{[%clk 0:01:27.5]} 1-0

[Event "*** Titled Tuesday Blitz"]
[Site "Chess.com"]
[Date "2020.11.03"]
[Round "1"]
[White "bazar-wokzal"]
[Black "picturesquecheck"]
[Result "1-0"]
[WhiteElo "2521"]
[BlackElo "2130"]
[TimeControl "180+1"]
[EndTime "10:04:02 PST"]
[Termination "bazar-wokzal won by resignation"]

1. e4 {[%clk 0:02:56.2]} 1... c5 {[%clk 0:02:59]} 2. c3 {[%clk 0:02:56.1]} 2...
d5 {[%clk 0:02:56.9]} 3. exd5 {[%clk 0:02:56.2]} 3... Qxd5 {[%clk 0:02:57.8]} 4.
d4 {[%clk 0:02:55.8]} 4... Nc6 {[%clk 0:02:57.1]} 5. Nf3 {[%clk 0:02:55.4]} 5...
Bf5 {[%clk 0:02:57]} 6. dxc5 {[%clk 0:02:52.1]} 6... Qxd1+ {[%clk 0:02:53.2]} 7.
Kxd1 {[%clk 0:02:52]} 7... e5 {[%clk 0:02:51.4]} 8. Be3 {[%clk 0:02:51.7]} 8...
Nf6 {[%clk 0:02:47.8]} 9. Bb5 {[%clk 0:02:50.5]} 9... Nd5 {[%clk 0:02:47.7]} 10.
Bxc6+ {[%clk 0:02:49.3]} 10... bxc6 {[%clk 0:02:47.6]} 11. Nxe5 {[%clk
0:02:48.8]} 11... Nxe3+ {[%clk 0:02:47.7]} 12. fxe3 {[%clk 0:02:48.9]} 12...
Bxc5 {[%clk 0:02:48]} 13. Nxc6 {[%clk 0:02:44.5]} 13... Be4 {[%clk 0:02:32]} 14.
Nd4 {[%clk 0:02:43.1]} 14... a5 {[%clk 0:02:21.2]} 15. Nd2 {[%clk 0:02:40.3]}
15... Bxg2 {[%clk 0:02:12.4]} 16. Rg1 {[%clk 0:02:40.1]} 16... Bd5 {[%clk
0:02:07.1]} 17. Rxg7 {[%clk 0:02:38.6]} 17... Rb8 {[%clk 0:02:06.8]} 18. Kc2
{[%clk 0:02:37.6]} 18... Bf8 {[%clk 0:01:53]} 19. Rg5 {[%clk 0:02:36.4]} 19...
Ba8 {[%clk 0:01:42.5]} 20. Re5+ {[%clk 0:02:36]} 20... Kd8 {[%clk 0:01:38.7]}
21. Rd1 {[%clk 0:02:35.2]} 21... Bh6 {[%clk 0:01:36.3]} 22. Nc4 {[%clk
0:02:31.6]} 22... Kc7 {[%clk 0:01:14.3]} 23. Rc5+ {[%clk 0:02:30.3]} 23... Kb7
{[%clk 0:01:11]} 24. Nxa5+ {[%clk 0:02:26.3]} 24... Ka6 {[%clk 0:01:08.5]} 25.
Nac6 {[%clk 0:02:21.9]} 25... Bxc6 {[%clk 0:01:07.9]} 26. Rxc6+ {[%clk
0:02:21.7]} 26... Rb6 {[%clk 0:01:07.3]} 27. Rxb6+ {[%clk 0:02:21.9]} 27... Kxb6
{[%clk 0:01:08.2]} 28. Kd3 {[%clk 0:02:21.7]} 28... Re8 {[%clk 0:01:07]} 29. e4
{[%clk 0:02:20.2]} 29... Rg8 {[%clk 0:01:05.8]} 30. Rf1 {[%clk 0:02:19.3]} 30...
Rg2 {[%clk 0:01:03.6]} 31. Rf6+ {[%clk 0:02:19.1]} 1-0

[Event "*** Titled Tuesday Blitz"]
[Site "Chess.com"]
[Date "2020.11.03"]
[Round "1"]
[White "starworld123"]
[Black "ClydeHillKid"]
[Result "1-0"]
[WhiteElo "2691"]
[BlackElo "2351"]
[TimeControl "180+1"]
[EndTime "10:04:03 PST"]
[Termination "starworld123 won by resignation"]

1. Nf3 {[%clk 0:02:58]} 1... d5 {[%clk 0:02:59.9]} 2. d4 {[%clk 0:02:57.1]} 2...
Nf6 {[%clk 0:02:59.6]} 3. c4 {[%clk 0:02:55.7]} 3... e6 {[%clk 0:02:59.5]} 4. g3
{[%clk 0:02:56.3]} 4... Be7 {[%clk 0:02:57.4]} 5. Bg2 {[%clk 0:02:57.2]} 5...
O-O {[%clk 0:02:56.9]} 6. O-O {[%clk 0:02:58.1]} 6... Nbd7 {[%clk 0:02:56]} 7.
Qc2 {[%clk 0:02:56.8]} 7... c5 {[%clk 0:02:56]} 8. cxd5 {[%clk 0:02:54.5]} 8...
Nxd5 {[%clk 0:02:54.9]} 9. e4 {[%clk 0:02:54.1]} 9... Nb4 {[%clk 0:02:54.1]} 10.
Qe2 {[%clk 0:02:53.8]} 10... b6 {[%clk 0:02:33.8]} 11. Rd1 {[%clk 0:02:53.2]}
11... Ba6 {[%clk 0:02:32.5]} 12. Qd2 {[%clk 0:02:51.8]} 12... cxd4 {[%clk
0:02:23.8]} 13. Nxd4 {[%clk 0:02:52.7]} 13... Nc5 {[%clk 0:02:19.1]} 14. Qxb4
{[%clk 0:02:49.8]} 14... e5 {[%clk 0:01:52.3]} 15. Nc3 {[%clk 0:02:45.3]} 15...
exd4 {[%clk 0:01:33.8]} 16. Rxd4 {[%clk 0:02:46.1]} 16... Ne6 {[%clk 0:01:06.3]}
17. Rxd8 {[%clk 0:02:42.4]} 17... Bxb4 {[%clk 0:01:05.8]} 18. Rxa8 {[%clk
0:02:42.3]} 18... Rxa8 {[%clk 0:01:06.3]} 19. Nd5 {[%clk 0:02:42.5]} 19... Bd6
{[%clk 0:01:03.8]} 20. e5 {[%clk 0:02:42.1]} 20... Bc5 {[%clk 0:00:53.7]} 21.
Ne7+ {[%clk 0:02:40.4]} 21... Bxe7 {[%clk 0:00:53.3]} 22. Bxa8 {[%clk
0:02:41.3]} 22... Kf8 {[%clk 0:00:53.3]} 23. Be3 {[%clk 0:02:40.7]} 23... Bc5
{[%clk 0:00:43.7]} 24. Bxc5+ {[%clk 0:02:34.4]} 24... bxc5 {[%clk 0:00:44.6]}
25. Rc1 {[%clk 0:02:33.2]} 25... Ke7 {[%clk 0:00:44]} 26. Bd5 {[%clk 0:02:32.4]}
1-0

[Event "*** Titled Tuesday Blitz"]
[Site "Chess.com"]
[Date "2020.11.03"]
[Round "1"]
[White "Philosopherrr"]
[Black "Margarita2907"]
[Result "0-1"]
[WhiteElo "2529"]
[BlackElo "2220"]
[TimeControl "180+1"]
[EndTime "10:04:03 PST"]
[Termination "Margarita2907 won by resignation"]

1. Nf3 {[%clk 0:03:00.9]} 1... Nf6 {[%clk 0:02:57.4]} 2. b3 {[%clk 0:02:59.4]}
2... d5 {[%clk 0:02:56.5]} 3. Bb2 {[%clk 0:02:58.8]} 3... e6 {[%clk 0:02:57]} 4.
e3 {[%clk 0:02:59.1]} 4... Bd6 {[%clk 0:02:56.1]} 5. Ne5 {[%clk 0:02:55.6]} 5...
O-O {[%clk 0:02:53.6]} 6. f4 {[%clk 0:02:54.9]} 6... c5 {[%clk 0:02:52.9]} 7.
Be2 {[%clk 0:02:51.9]} 7... Nbd7 {[%clk 0:02:51.8]} 8. O-O {[%clk 0:02:47.4]}
8... Qc7 {[%clk 0:02:47.9]} 9. d4 {[%clk 0:02:40]} 9... Ne4 {[%clk 0:02:43.4]}
10. c3 {[%clk 0:02:36.1]} 10... f6 {[%clk 0:02:39.8]} 11. Nxd7 {[%clk
0:02:35.1]} 11... Bxd7 {[%clk 0:02:39.7]} 12. Nd2 {[%clk 0:02:36]} 12... Nxd2
{[%clk 0:02:33.3]} 13. Qxd2 {[%clk 0:02:35.4]} 13... Rae8 {[%clk 0:02:28]} 14.
Bh5 {[%clk 0:02:31.7]} 14... Rd8 {[%clk 0:02:25.5]} 15. Rae1 {[%clk 0:02:24.9]}
15... Bc6 {[%clk 0:02:16.7]} 16. Kh1 {[%clk 0:02:23]} 16... e5 {[%clk
0:02:12.4]} 17. fxe5 {[%clk 0:01:59.2]} 17... fxe5 {[%clk 0:02:13.2]} 18. h3
{[%clk 0:01:46.2]} 18... cxd4 {[%clk 0:02:04.6]} 19. cxd4 {[%clk 0:01:44.5]}
19... e4 {[%clk 0:02:02.9]} 20. Bc3 {[%clk 0:01:40.4]} 20... Bb5 {[%clk
0:02:01.5]} 21. Rxf8+ {[%clk 0:01:36.3]} 21... Rxf8 {[%clk 0:02:01.2]} 22. Bb4
{[%clk 0:01:35.8]} 22... Bd3 {[%clk 0:01:54.1]} 23. Rc1 {[%clk 0:01:21.3]} 23...
Bxb4 {[%clk 0:01:49.8]} 0-1

[Event "*** Titled Tuesday Blitz"]
[Site "Chess.com"]
[Date "2020.11.03"]
[Round "1"]
[White "Supernotar"]
[Black "dawtonlms"]
[Result "1-0"]
[WhiteElo "2846"]
[BlackElo "2420"]
[TimeControl "180+1"]
[EndTime "10:04:13 PST"]
[Termination "Supernotar won by resignation"]

1. d4 {[%clk 0:03:00.9]} 1... Nf6 {[%clk 0:02:59.8]} 2. c4 {[%clk 0:03:01.2]}
2... e6 {[%clk 0:03:00]} 3. Nf3 {[%clk 0:03:01.2]} 3... Bb4+ {[%clk 0:02:56.4]}
4. Nbd2 {[%clk 0:03:00.9]} 4... Nc6 {[%clk 0:02:41.7]} 5. g3 {[%clk 0:03:00.5]}
5... O-O {[%clk 0:02:32.3]} 6. Bg2 {[%clk 0:03:00.4]} 6... Be7 {[%clk
0:02:13.8]} 7. O-O {[%clk 0:03:00.5]} 7... d6 {[%clk 0:02:14.1]} 8. e4 {[%clk
0:03:00.3]} 8... e5 {[%clk 0:02:14]} 9. d5 {[%clk 0:02:57.5]} 9... Nb8 {[%clk
0:02:14.3]} 10. Ne1 {[%clk 0:02:57.4]} 10... a5 {[%clk 0:02:14.3]} 11. Nd3
{[%clk 0:02:57.4]} 11... Ne8 {[%clk 0:02:11.7]} 12. f4 {[%clk 0:02:56.6]} 12...
exf4 {[%clk 0:02:10.8]} 13. gxf4 {[%clk 0:02:56.2]} 13... Na6 {[%clk 0:02:09.7]}
14. b3 {[%clk 0:02:46.2]} 14... b6 {[%clk 0:02:09]} 15. Bb2 {[%clk 0:02:46.3]}
15... Nc5 {[%clk 0:02:09.4]} 16. Qe2 {[%clk 0:02:42.4]} 16... Bf6 {[%clk
0:01:33.3]} 17. e5 {[%clk 0:02:41.2]} 17... Be7 {[%clk 0:01:33.6]} 18. Rae1
{[%clk 0:02:38.9]} 18... Bf5 {[%clk 0:01:33]} 19. Nxc5 {[%clk 0:02:38.6]} 19...
bxc5 {[%clk 0:01:32]} 20. Ne4 {[%clk 0:02:35.6]} 20... a4 {[%clk 0:01:25]} 21.
Ng3 {[%clk 0:02:35.4]} 21... Bd7 {[%clk 0:01:17.3]} 22. e6 {[%clk 0:02:34.4]}
22... Bc8 {[%clk 0:01:13.2]} 23. Nf5 {[%clk 0:02:31.5]} 23... fxe6 {[%clk
0:01:04.5]} 24. dxe6 {[%clk 0:02:17]} 24... Rb8 {[%clk 0:01:04.2]} 25. Nh6+
{[%clk 0:02:01.9]} 1-0

[Event "*** Titled Tuesday Blitz"]
[Site "Chess.com"]
[Date "2020.11.03"]
[Round "1"]
[White "Alexchess1984"]
[Black "winniethepooh04"]
[Result "1-0"]
[WhiteElo "2559"]
[BlackElo "2228"]
[TimeControl "180+1"]
[EndTime "10:04:18 PST"]
[Termination "Alexchess1984 won by resignation"]

1. e4 {[%clk 0:02:59.7]} 1... e6 {[%clk 0:03:00.3]} 2. d4 {[%clk 0:02:58.6]}
2... d5 {[%clk 0:03:00.9]} 3. Nd2 {[%clk 0:02:58.7]} 3... c5 {[%clk 0:03:00.7]}
4. c3 {[%clk 0:02:58.3]} 4... cxd4 {[%clk 0:03:00.8]} 5. cxd4 {[%clk 0:02:58.6]}
5... dxe4 {[%clk 0:03:01.4]} 6. Nxe4 {[%clk 0:02:58.9]} 6... Nf6 {[%clk
0:03:02.1]} 7. Nxf6+ {[%clk 0:02:58.8]} 7... Qxf6 {[%clk 0:03:03]} 8. a3 {[%clk
0:02:59.1]} 8... Be7 {[%clk 0:02:55.6]} 9. Nf3 {[%clk 0:02:59.6]} 9... h6 {[%clk
0:02:55.2]} 10. h4 {[%clk 0:02:58.2]} 10... Nc6 {[%clk 0:02:52.9]} 11. Bg5
{[%clk 0:02:57.3]} 11... Qf5 {[%clk 0:02:34.1]} 12. Bd3 {[%clk 0:02:55.9]} 12...
Qa5+ {[%clk 0:02:33.1]} 13. Bd2 {[%clk 0:02:55.1]} 13... Qb6 {[%clk 0:02:31.9]}
14. Bc3 {[%clk 0:02:54.4]} 14... Bf6 {[%clk 0:02:26.9]} 15. Bc2 {[%clk 0:02:54]}
15... Bd7 {[%clk 0:02:23.2]} 16. O-O {[%clk 0:02:51.9]} 16... O-O {[%clk
0:02:21.1]} 17. h5 {[%clk 0:02:48.5]} 17... Ne7 {[%clk 0:02:19.7]} 18. Qd3
{[%clk 0:02:47.6]} 18... Nf5 {[%clk 0:02:04.5]} 19. g4 {[%clk 0:02:47.4]} 19...
Bb5 {[%clk 0:02:01.6]} 20. Qe4 {[%clk 0:02:43.4]} 20... Bc6 {[%clk 0:01:59.4]}
21. Qf4 {[%clk 0:02:43]} 21... Nh4 {[%clk 0:01:46.8]} 22. Nxh4 {[%clk
0:02:40.5]} 22... Bxh4 {[%clk 0:01:46.7]} 23. Rfe1 {[%clk 0:02:34.5]} 23... Qd8
{[%clk 0:01:42.6]} 24. Re5 {[%clk 0:02:34]} 24... Qf6 {[%clk 0:01:39.1]} 25. Qe3
{[%clk 0:02:33.5]} 25... Bg5 {[%clk 0:01:35.6]} 26. Qd3 {[%clk 0:02:31.8]} 26...
Rfd8 {[%clk 0:01:15.3]} 27. Qh7+ {[%clk 0:02:28]} 27... Kf8 {[%clk 0:01:14.7]}
28. d5 {[%clk 0:02:25.5]} 28... Bxd5 {[%clk 0:01:07]} 29. Rxd5 {[%clk
0:02:21.7]} 29... Qf3 {[%clk 0:00:55.4]} 30. Qxg7+ {[%clk 0:02:16.6]} 30... Ke8
{[%clk 0:00:54.1]} 31. Ba4+ {[%clk 0:02:15.3]} 1-0